fUSD/lending_fUSD_20250219
["ID","MTS","AMOUNT","RATE_DAILY","PERIOD"]
[353692339,1739991092450,-867.64,0.00011777,2]
[353692340,1739991092461,-500.0,0.00011777,2]
[353692341,1739991092471,-500.0,0.00011777,2]
[353692342,1739991092483,-909.17,0.00011777,2]
[353692343,1739991092493,-659.34,0.00011777,2]
[353692344,1739991092503,-500.0,0.00011777,2]
[353692345,1739991092513,-500.0,0.00011777,2]
[353692346,1739991092524,-944.41,0.00011777,2]
[353692347,1739991092534,-1667.3,0.00011777,2]
[353692348,1739991092544,-1335.65,0.00011777,2]
[353692349,1739991092554,-1536.77,0.00011777,2]
[353692350,1739991092563,-500.0,0.00011777,2]
[353692351,1739991092573,-2300.26,0.00011777,2]
[353692352,1739991092584,-1054.96,0.00011777,2]
[353692353,1739991092594,-3967.01,0.00011777,2]
[353692354,1739991092604,-2151.49,0.00011777,2]
[353692355,1739991092614,-500.0,0.00011777,2]
[353692356,1739991092624,-1026.98,0.00011777,2]
[353692357,1739991092634,-1717.95,0.00011777,2]
[353692358,1739991092644,-723.0,0.00011777,2]
[353692359,1739991092654,-858.82,0.00011777,2]
[353692360,1739991092664,-736.71,0.00011777,2]
[353692361,1739991092675,-500.0,0.00011777,2]
[353692362,1739991092685,-731.07,0.00011777,2]
[353692363,1739991092695,-808.06,0.00011777,2]
[353692364,1739991092706,-500.0,0.00011777,2]
[353692365,1739991092716,-500.0,0.00011777,2]
[353692366,1739991092727,-1003.52,0.00011777,2]
[353692367,1739991092918,-500.0,0.00011777,2]
[353692368,1739991092928,-1216.45,0.00011777,2]
[353692369,1739991092938,-897.65,0.00011777,2]
[353692370,1739991092947,-969.77,0.00011777,2]
[353692371,1739991092957,-1228.25,0.00011777,2]
[353692372,1739991092967,-2264.91,0.00011777,2]
[353692373,1739991092977,-597.7,0.00011777,2]
[353692374,1739991092987,-500.0,0.00011777,2]
[353692375,1739991092996,-1031.26,0.00011777,2]
[353692376,1739991093006,-813.49,0.00011777,2]
[353692377,1739991093016,-500.0,0.00011777,2]
[353692378,1739991093027,-943.59,0.00011777,2]
[353692379,1739991093038,-807.9,0.00011777,2]
[353692380,1739991093048,-952.43,0.00011777,2]
[353692381,1739991093058,-1249.19,0.00011777,2]
[353692382,1739991093068,-1931.39,0.00011777,2]
[353692383,1739991093079,-699.69,0.00011777,2]
[353692384,1739991093089,-736.37,0.00011777,2]
[353692385,1739991093100,-1349.59,0.00011777,2]
[353692386,1739991093110,-2136.43,0.00011777,2]
[353692387,1739991093119,-1308.13,0.00011777,2]
[353692388,1739991093128,-763.21,0.00011777,2]
[353692389,1739991093138,-500.0,0.00011777,2]
[353692390,1739991093147,-676.6,0.00011777,2]
[353692391,1739991093157,-1669.19,0.00011777,2]
[353692392,1739991093167,-2496.14,0.00011777,2]
[353692393,1739991093176,-838.79,0.00011777,2]
[353692394,1739991093186,-500.0,0.00011777,2]
[353692395,1739991093196,-844.7,0.00011777,2]
[353692396,1739991093206,-500.0,0.00011777,2]
[353692397,1739991093216,-1038.95,0.00011777,2]
[353692398,1739991093226,-500.0,0.00011777,2]
[353692399,1739991093236,-643.34,0.00011777,2]
[353692400,1739991093245,-862.23,0.00011777,2]
[353692401,1739991093256,-1682.85,0.00011777,2]
[353692402,1739991093266,-972.98,0.00011777,2]
[353692403,1739991093276,-1170.77,0.00011777,2]
[353692404,1739991093286,-1036.38,0.00011777,2]
[353692405,1739991093296,-665.65,0.00011777,2]
[353692406,1739991093307,-504.40881855,0.00011777,2]
[353692407,1739991093316,-500.0,0.00011777,2]
[353692408,1739991093327,-816.32,0.00011777,2]
[353692409,1739991093337,-500.0,0.00011777,2]
[353692410,1739991093347,-1472.21,0.00011777,2]
[353692411,1739991093358,-1143.91,0.00011777,2]
[353692412,1739991093368,-500.0,0.00011777,2]
[353692413,1739991093378,-7684.69,0.00011777,2]
[353692414,1739991093389,-500.0,0.00011777,2]
[353692415,1739991093398,-1239.55,0.00011777,2]
[353692416,1739991093408,-1609.82,0.00011777,2]
[353692417,1739991093419,-694.56,0.00011777,2]
[353692418,1739991093429,-1000.0,0.00011777,2]
[353692419,1739991093440,-500.0,0.00011777,2]
[353692420,1739991093453,-677.2,0.00011777,2]
[353692421,1739991093463,-1545.54,0.00011777,2]
[353692422,1739991093473,-1288.85,0.00011777,2]
[353692423,1739991093483,-1349.76,0.00011777,2]
[353692424,1739991093494,-591.57,0.00011777,2]
[353692425,1739991093504,-500.0,0.00011777,2]
[353692426,1739991093514,-500.0,0.00011777,2]
[353692427,1739991093525,-1045.64,0.00011777,2]
[353692428,1739991093535,-544.71,0.00011777,2]
[353692429,1739991093545,-515.07,0.00011777,2]
[353692430,1739991093555,-500.0,0.00011777,2]
[353692431,1739991093565,-500.0,0.00011777,2]
[353692432,1739991093574,-864.21,0.00011777,2]
[353692433,1739991093584,-1217.73,0.00011777,2]
[353692434,1739991093594,-500.0,0.00011777,2]
[353692435,1739991093603,-1242.44,0.00011777,2]
[353692436,1739991093613,-608.9,0.00011777,2]
[353692437,1739991093624,-500.0,0.00011777,2]
[353692438,1739991093633,-500.0,0.00011777,2]
[353692439,1739991093643,-1333.33,0.00011777,2]
[353692440,1739991093653,-2099.28,0.00011777,2]
[353692441,1739991093663,-646.88,0.00011777,2]
[353692442,1739991093675,-1098.74,0.00011777,2]
[353692443,1739991093685,-631.78,0.00011777,2]
[353692444,1739991093695,-1305.78,0.00011777,2]
[353692445,1739991093705,-814.94,0.00011777,2]
[353692446,1739991093715,-500.0,0.00011777,2]
[353692447,1739991093724,-591.42,0.00011777,2]
[353692448,1739991093734,-500.0,0.00011777,2]
[353692449,1739991093744,-1698.82,0.00011777,2]
[353692450,1739991093754,-500.0,0.00011777,2]
[353692451,1739991093764,-1656.29,0.00011777,2]
[353692452,1739991093774,-958.07,0.00011777,2]
[353692453,1739991093784,-1140.78,0.00011777,2]
[353692454,1739991093794,-1343.79,0.00011777,2]
[353692455,1739991093803,-500.0,0.00011777,2]
[353692456,1739991093813,-500.0,0.00011777,2]
[353692457,1739991093822,-3616.83,0.00011777,2]
[353692458,1739991093831,-1109.34,0.00011777,2]
[353692459,1739991093841,-940.17,0.00011777,2]
[353692460,1739991093851,-500.0,0.00011777,2]
[353692461,1739991093862,-1068.94,0.00011777,2]
[353692462,1739991093872,-500.0,0.00011777,2]
[353692463,1739991093882,-1192.02,0.00011777,2]
[353692464,1739991093892,-1134.66,0.00011777,2]
[353692465,1739991093902,-500.0,0.00011777,2]
[353692466,1739991093912,-481.95,0.00011777,2]
[353692467,1739991093923,-1387.53,0.00011777,2]
[353692468,1739991093932,-500.0,0.00011777,2]
[353692469,1739991093942,-500.0,0.00011777,2]
[353692470,1739991093952,-525.63,0.00011777,2]
[353692471,1739991093962,-500.0,0.00011777,2]
[353692472,1739991093971,-1867.51,0.00011777,2]
[353692473,1739991093981,-1262.86,0.00011777,2]
[353692474,1739991093991,-1225.46,0.00011777,2]
[353692475,1739991094005,-500.0,0.00011777,2]
[353692476,1739991094016,-1283.85,0.00011777,2]
[353692477,1739991094026,-1033.15,0.00011777,2]
[353692478,1739991094036,-1890.5,0.00011777,2]
[353692479,1739991094047,-500.0,0.00011777,2]
[353692480,1739991094057,-1247.13,0.00011777,2]
[353692481,1739991094068,-500.0,0.00011777,2]
[353692482,1739991094078,-953.52,0.00011777,2]
[353692483,1739991094088,-701.13,0.00011777,2]
[353692484,1739991094098,-606.51,0.00011777,2]
[353692485,1739991094108,-500.0,0.00011777,2]
[353692486,1739991094117,-837.99,0.00011777,2]
[353692487,1739991094128,-852.55,0.00011777,2]
[353692488,1739991094138,-1040.5,0.00011777,2]
[353692489,1739991094149,-626.51,0.00011777,2]
[353692490,1739991094160,-619.57179164,0.00011777,2]
[353692491,1739991094173,-500.0,0.00011777,2]
[353692492,1739991094184,-500.0,0.00011777,2]
[353692493,1739991094195,-1225.45,0.00011777,2]
[353692494,1739991094205,-500.0,0.00011778,2]
[353692495,1739991094216,-711.12,0.00011778,2]
[353692496,1739991094227,-253.31809214,0.00011778,2]
[353692497,1739991094237,-500.0,0.00011778,2]
[353692498,1739991094248,-500.0,0.00011778,2]
[353692499,1739991094259,-567.75,0.00011778,2]
[353692500,1739991094271,-774.79,0.00011778,2]
[353692501,1739991094282,-648.92,0.00011778,2]
[353692502,1739991094293,-500.0,0.00011778,2]
[353692503,1739991094303,-295.01706919,0.00011778,2]
[353692504,1739991094314,-500.0,0.00011778,2]
[353692505,1739991094325,-528.5336442,0.00011778,2]
[353692506,1739991094335,-939.76,0.00011778,2]
[353692507,1739991094346,-500.0,0.00011778,2]
[353692508,1739991094357,-726.31,0.00011778,2]
[353692509,1739991094367,-527.6,0.00011778,2]
[353692510,1739991094378,-637.14,0.00011778,2]
[353692511,1739991094388,-501.4,0.00011778,2]
[353692512,1739991094398,-550.13,0.00011778,2]
[353692513,1739991094408,-500.0,0.00011778,2]
[353692514,1739991094421,-605.64,0.00011778,2]
[353692515,1739991094431,-500.0,0.00011778,2]
[353692516,1739991094441,-500.0,0.00011778,2]
[353692517,1739991094454,-670.06,0.00011778,2]
[353692518,1739991094464,-500.0,0.00011778,2]
[353692519,1739991094474,-500.0,0.00011778,2]
[353692520,1739991094485,-500.0,0.00011778,2]
[353692521,1739991094495,-741.15,0.00011778,2]
[353692522,1739991094505,-500.0,0.00011778,2]
[353692523,1739991094515,-917.52,0.00011778,2]
[353692524,1739991094525,-653.65,0.00011778,2]
[353692525,1739991094536,-500.0,0.00011778,2]
[353692526,1739991094546,-500.0,0.00011778,2]
[353692527,1739991094555,-500.0,0.00011778,2]
[353692528,1739991094565,-575.12,0.00011778,2]
[353692529,1739991094574,-500.0,0.00011778,2]
[353692530,1739991094584,-1008.4,0.00011778,2]
[353692531,1739991094594,-648.67,0.00011778,2]
[353692532,1739991094604,-500.0,0.00011778,2]
[353692533,1739991094614,-709.82,0.00011778,2]
[353692534,1739991094624,-527.60267086,0.00011778,2]
[353692535,1739991094633,-500.0,0.00011778,2]
[353692536,1739991094644,-759.69,0.00011778,2]
[353692537,1739991094654,-939.45,0.00011778,2]
[353692538,1739991094665,-934.24,0.00011778,2]
[353692539,1739991094676,-1565.74,0.00011778,2]
[353692540,1739991094686,-500.0,0.00011778,2]
[353692541,1739991094697,-779.39,0.00011778,2]
[353692542,1739991094706,-1114.74,0.00011778,2]
[353692543,1739991094716,-500.0,0.00011778,2]
[353692544,1739991094726,-500.0,0.00011778,2]
[353692545,1739991094736,-500.0,0.00011778,2]
[353692546,1739991094746,-1307.87,0.00011778,2]
[353692547,1739991094756,-500.0,0.00011778,2]
[353692548,1739991094765,-1563.31,0.00011778,2]
[353692549,1739991094775,-500.0,0.00011778,2]
[353692550,1739991094784,-626.84,0.00011778,2]
[353692551,1739991094795,-500.0,0.00011778,2]
[353692552,1739991094805,-1098.62,0.00011778,2]
[353692553,1739991094815,-602.42,0.00011778,2]
[353692554,1739991094824,-1563.53,0.00011778,2]
[353692555,1739991094834,-500.0,0.00011778,2]
[353692556,1739991094844,-1617.89,0.00011778,2]
[353692557,1739991094855,-568.32,0.00011778,2]
[353692558,1739991094866,-500.0,0.00011778,2]
[353692559,1739991094875,-1902.45,0.00011778,2]
[353692560,1739991094885,-500.0,0.00011778,2]
[353692561,1739991094896,-997.72,0.00011778,2]
[353692562,1739991094906,-1224.85,0.00011778,2]
[353692563,1739991094916,-1076.75,0.00011778,2]
[353692564,1739991094927,-1287.1,0.00011778,2]
[353692565,1739991094938,-507.43,0.00011778,2]
[353692566,1739991094947,-1834.21,0.00011778,2]
[353692567,1739991094958,-1131.11,0.00011778,2]
[353692568,1739991094968,-500.0,0.00011778,2]
[353692569,1739991094977,-1818.6,0.00011778,2]
[353692570,1739991094988,-967.39,0.00011778,2]
[353692571,1739991094998,-613.64,0.00011778,2]
[353692572,1739991095008,-500.0,0.00011778,2]
[353692573,1739991095018,-1954.75,0.00011778,2]
[353692574,1739991095028,-500.0,0.00011778,2]
[353692575,1739991095038,-1010.26,0.00011778,2]
[353692576,1739991095049,-500.0,0.00011778,2]
[353692577,1739991095059,-651.03,0.00011778,2]
[353692578,1739991095068,-825.62,0.00011778,2]
[353692579,1739991095077,-500.0,0.00011778,2]
[353692580,1739991095087,-842.88,0.00011778,2]
[353692581,1739991095097,-500.0,0.00011778,2]
[353692582,1739991095107,-500.0,0.00011778,2]
[353692583,1739991095117,-500.0,0.00011778,2]
[353692584,1739991095128,-1110.11,0.00011778,2]
[353692585,1739991095137,-774.36,0.00011778,2]
[353692586,1739991095147,-811.92,0.00011778,2]
[353692587,1739991095157,-1151.56,0.00011778,2]
[353692588,1739991095168,-500.0,0.00011778,2]
[353692589,1739991095179,-500.0,0.00011778,2]
[353692590,1739991095189,-1042.18,0.00011778,2]
[353692591,1739991095200,-500.0,0.00011778,2]
[353692592,1739991095209,-534.83,0.00011778,2]
[353692593,1739991095219,-500.0,0.00011778,2]
[353692594,1739991095229,-619.91,0.00011778,2]
[353692595,1739991095239,-533.51,0.00011778,2]
[353692596,1739991095249,-581.26,0.00011778,2]
[353692597,1739991095259,-500.0,0.00011778,2]
[353692598,1739991095269,-500.0,0.00011778,2]
[353692599,1739991095280,-500.0,0.00011778,2]
[353692600,1739991095290,-500.0,0.00011778,2]
[353692601,1739991095299,-500.0,0.00011778,2]
[353692602,1739991095309,-500.0,0.00011778,2]
[353692603,1739991095319,-500.0,0.00011778,2]
[353692604,1739991095328,-500.0,0.00011778,2]
[353692605,1739991095338,-849.02,0.00011778,2]
[353692606,1739991095348,-563.08,0.00011778,2]
[353692607,1739991095359,-758.16,0.00011778,2]
[353692608,1739991095368,-500.0,0.00011778,2]
[353692609,1739991095378,-500.0,0.00011778,2]
[353692610,1739991095387,-842.88,0.0001178,2]
[353692611,1739991095397,-659.34,0.0001178,2]
[353692612,1739991095406,-659.34,0.0001178,2]
[353692613,1739991095416,-659.34,0.0001178,2]
[353692614,1739991095427,-659.34,0.0001178,2]
[353692615,1739991095437,-659.42925904,0.0001178,2]
[353692616,1739991095449,-500.0,0.0001178,2]
[353692617,1739991095459,-2000.0,0.0001178,2]
[353692618,1739991095468,-5400.0,0.0001178,2]
[353692619,1739991095478,-5900.0,0.0001178,2]
[353692620,1739991095489,-48674.2102012,0.00011781,7]
[353692621,1739991095499,-201997.500292,0.00011781,7]
[353692622,1739991095509,-1551.05523445,0.00011781,7]
[353692623,1739991095519,-846.21496032,0.00011781,7]
[353692624,1739991095530,-151.0,0.00011781,2]
[353692625,1739991095541,-1000.0,0.00011821,2]
[353692626,1739991095551,-1669.0,0.00011821,2]
[353692627,1739991095560,-1893.0,0.00011832,2]
[353692628,1739991095570,-163.05610438,0.00011842,2]
[353692629,1739991095580,-1285.43,0.00011858,2]
[353692630,1739991095590,-2055.78,0.00011858,2]
[353692631,1739991095600,-1176.26,0.00011858,2]
[353692632,1739991095609,-1598.02,0.00011858,2]
[353692633,1739991095620,-1177.64,0.00011858,2]
[353692634,1739991095630,-1728.13,0.00011858,2]
[353692635,1739991095640,-1464.57,0.00011858,2]
[353692636,1739991095650,-988.1,0.00011858,2]
[353692637,1739991095660,-1523.71,0.00011858,2]
[353692638,1739991095670,-1697.79,0.00011858,2]
[353692639,1739991095680,-914.84,0.00011858,2]
[353692640,1739991095690,-1345.01,0.00011858,2]
[353692641,1739991095700,-1899.5,0.00011858,2]
[353692642,1739991095710,-835.97,0.00011858,2]
[353692643,1739991095720,-1253.59,0.00011858,2]
[353692644,1739991095729,-676.35,0.00011858,2]
[353692645,1739991095740,-1199.2,0.00011858,2]
[353692646,1739991095750,-1444.06,0.00011858,2]
[353692647,1739991095760,-1165.51,0.00011858,2]
[353692648,1739991095770,-1110.09,0.00011858,2]
[353692649,1739991095780,-955.77,0.00011858,2]
[353692650,1739991095791,-1702.36,0.00011858,2]
[353692651,1739991095801,-500.0,0.00011858,2]
[353692652,1739991095810,-1068.07,0.00011858,2]
[353692653,1739991095820,-541.29,0.00011858,2]
[353692654,1739991095830,-1380.32,0.00011858,2]
[353692655,1739991095841,-500.0,0.00011859,2]
[353692656,1739991095850,-564.03,0.00011859,2]
[353692657,1739991095859,-500.0,0.00011859,2]
[353692658,1739991095869,-347.50243211,0.00011859,2]
[353692659,1739991095879,-958.09,0.00011859,2]
[353692660,1739991095889,-500.0,0.00011859,2]
[353692661,1739991095899,-638.44,0.00011859,2]
[353692662,1739991095909,-500.0,0.00011859,2]
[353692663,1739991095920,-1305.17,0.00011859,2]
[353692664,1739991095930,-500.0,0.00011859,2]
[353692665,1739991095939,-500.0,0.00011859,2]
[353692666,1739991095950,-335.282174,0.00011859,2]
[353692667,1739991095959,-1013.4,0.00011859,2]
[353692668,1739991095969,-445.363227,0.00011859,2]
[353692669,1739991095979,-800.82,0.00011859,2]
[353692670,1739991095990,-566.24,0.00011859,2]
[353692671,1739991096000,-500.0,0.00011859,2]
[353692672,1739991096010,-1291.22,0.00011859,2]
[353692673,1739991096020,-705.7,0.00011859,2]
[353692674,1739991096030,-1007.94,0.00011859,2]
[353692675,1739991096039,-500.0,0.00011859,2]
[353692676,1739991096049,-500.0,0.00011859,2]
[353692677,1739991096058,-500.0,0.00011859,2]
[353692678,1739991096068,-1100.17,0.00011859,2]
[353692679,1739991096078,-1164.92,0.00011859,2]
[353692680,1739991096087,-1009.77,0.00011859,2]
[353692681,1739991096098,-1086.24,0.00011859,2]
[353692682,1739991096108,-1103.11,0.00011859,2]
[353692683,1739991096118,-500.0,0.00011859,2]
[353692684,1739991096128,-500.0,0.00011859,2]
[353692685,1739991096137,-689.09,0.00011859,2]
[353692686,1739991096147,-500.0,0.00011859,2]
[353692687,1739991096157,-1109.15,0.00011859,2]
[353692688,1739991096168,-752.25,0.00011859,2]
[353692689,1739991096179,-712.53,0.00011859,2]
[353692690,1739991096189,-500.0,0.00011859,2]
[353692691,1739991096201,-844.15,0.00011859,2]
[353692692,1739991096211,-1035.94,0.00011859,2]
[353692693,1739991096221,-1177.99,0.00011859,2]
[353692694,1739991096232,-970.06,0.00011859,2]
[353692695,1739991096242,-842.16,0.00011859,2]
[353692696,1739991096252,-1231.95,0.00011859,2]
[353692697,1739991096261,-833.68,0.00011859,2]
[353692698,1739991096273,-1384.51,0.00011859,2]
[353692699,1739991096283,-992.43,0.00011859,2]
[353692700,1739991096293,-700.4,0.00011859,2]
[353692701,1739991096303,-896.41,0.00011859,2]
[353692702,1739991096313,-500.0,0.00011859,2]
[353692703,1739991096321,-835.28,0.00011859,2]
[353692704,1739991096331,-730.1,0.00011859,2]
[353692705,1739991096341,-638.47,0.00011859,2]
[353692706,1739991096351,-722.91,0.00011859,2]
[353692707,1739991096361,-700.98,0.00011859,2]
[353692708,1739991096370,-500.0,0.00011859,2]
[353692709,1739991096380,-887.61,0.00011859,2]
[353692710,1739991096390,-1299.23,0.00011859,2]
[353692711,1739991096400,-537.11,0.00011859,2]
[353692712,1739991096410,-1023.26,0.00011859,2]
[353692713,1739991096421,-500.0,0.00011859,2]
[353692714,1739991096430,-1193.06,0.00011859,2]
[353692715,1739991096441,-809.28,0.00011859,2]
[353692716,1739991096454,-569.98,0.00011859,2]
[353692717,1739991096464,-947.29,0.00011859,2]
[353692718,1739991096474,-738.85,0.00011859,2]
[353692719,1739991096486,-500.0,0.00011859,2]
[353692720,1739991096496,-819.36,0.00011859,2]
[353692721,1739991096505,-504.01,0.00011859,2]
[353692722,1739991096515,-841.31,0.00011859,2]
[353692723,1739991096526,-716.57,0.00011859,2]
[353692724,1739991096536,-1059.78,0.00011859,2]
[353692725,1739991096546,-685.17,0.00011859,2]
[353692726,1739991096555,-948.49,0.00011859,2]
[353692727,1739991096565,-1210.93,0.00011859,2]
[353692728,1739991096574,-1232.61,0.00011859,2]
[353692729,1739991096584,-660.75,0.00011859,2]
[353692730,1739991096594,-722.62,0.00011859,2]
[353692731,1739991096604,-856.89,0.00011859,2]
[353692732,1739991096614,-529.4,0.00011859,2]
[353692733,1739991096623,-500.0,0.00011859,2]
[353692734,1739991096632,-500.0,0.00011859,2]
[353692735,1739991096641,-500.0,0.00011859,2]
[353692736,1739991096840,-1123.65,0.00011859,2]
[353692737,1739991096851,-500.0,0.00011859,2]
[353692738,1739991096860,-767.14,0.00011859,2]
[353692739,1739991096869,-838.25,0.00011859,2]
[353692740,1739991096879,-857.74,0.00011859,2]
[353692741,1739991096890,-702.31,0.00011859,2]
[353692742,1739991096899,-500.0,0.00011859,2]
[353692743,1739991096908,-1022.47,0.00011859,2]
[353692744,1739991096918,-766.99,0.00011859,2]
[353692745,1739991096929,-1271.18,0.00011859,2]
[353692746,1739991096938,-562.14,0.00011859,2]
[353692747,1739991096948,-1255.93,0.00011859,2]
[353692748,1739991096958,-735.72,0.00011859,2]
[353692749,1739991096968,-1023.77,0.00011859,2]
[353692750,1739991096977,-500.0,0.00011859,2]
[353692751,1739991096987,-741.16,0.00011859,2]
[353692752,1739991096997,-500.0,0.00011859,2]
[353692753,1739991097007,-500.0,0.00011859,2]
[353692754,1739991097016,-1492.46,0.00011859,2]
[353692755,1739991097026,-1211.99,0.00011859,2]
[353692756,1739991097035,-908.55,0.00011859,2]
[353692757,1739991097046,-1115.3,0.00011859,2]
[353692758,1739991097056,-622.28,0.00011859,2]
[353692759,1739991097065,-725.41,0.00011859,2]
[353692760,1739991097075,-1312.13,0.00011859,2]
[353692761,1739991097085,-500.0,0.00011859,2]
[353692762,1739991097095,-500.0,0.00011859,2]
[353692763,1739991097106,-1135.89,0.00011859,2]
[353692764,1739991097116,-500.0,0.00011859,2]
[353692765,1739991097125,-626.24,0.00011859,2]
[353692766,1739991097136,-873.22,0.00011859,2]
[353692767,1739991097146,-828.64,0.00011859,2]
[353692768,1739991097160,-1067.13,0.00011859,2]
[353692769,1739991097170,-760.82,0.00011859,2]
[353692770,1739991097180,-959.81,0.00011859,2]
[353692771,1739991097190,-1130.2,0.00011859,2]
[353692772,1739991097200,-286.99654461,0.00011859,2]
[353692773,1739991097210,-621.03,0.00011859,2]
[353692774,1739991097221,-837.8,0.00011859,2]
[353692775,1739991097231,-500.0,0.00011859,2]
[353692776,1739991097241,-500.0,0.00011859,2]
[353692777,1739991097251,-524.85,0.00011859,2]
[353692778,1739991097261,-687.97,0.00011859,2]
[353692779,1739991097274,-763.25,0.00011859,2]
[353692780,1739991097284,-1453.26,0.00011859,2]
[353692781,1739991097294,-2178.41,0.00011859,2]
[353692782,1739991097304,-2978.68,0.00011859,2]
[353692783,1739991097315,-867.64,0.00011859,2]
[353692784,1739991097325,-500.0,0.00011859,2]
[353692785,1739991097335,-909.17,0.00011859,2]
[353692786,1739991097346,-500.0,0.00011859,2]
[353692787,1739991097357,-500.0,0.00011859,2]
[353692788,1739991097367,-944.41,0.00011859,2]
[353692789,1739991097377,-1667.3,0.00011859,2]
[353692790,1739991097387,-1335.65,0.00011859,2]
[353692791,1739991097396,-1536.77,0.00011859,2]
[353692792,1739991097405,-500.0,0.00011859,2]
[353692793,1739991097416,-2300.26,0.00011859,2]
[353692794,1739991097429,-1054.96,0.00011859,2]
[353692795,1739991097439,-3967.01,0.00011859,2]
[353692796,1739991097450,-2151.49,0.00011859,2]
[353692797,1739991097460,-500.0,0.00011859,2]
[353692798,1739991097470,-1026.98,0.00011859,2]
[353692799,1739991097480,-1717.95,0.00011859,2]
[353692800,1739991097490,-723.0,0.00011859,2]
[353692801,1739991097499,-858.82,0.00011859,2]
[353692802,1739991097509,-500.0,0.00011859,2]
[353692803,1739991097519,-736.71,0.00011859,2]
[353692804,1739991097529,-731.07,0.00011859,2]
[353692805,1739991097540,-808.06,0.00011859,2]
[353692806,1739991097550,-500.0,0.00011859,2]
[353692807,1739991097559,-1003.52,0.00011859,2]
[353692808,1739991097568,-500.0,0.00011859,2]
[353692809,1739991097577,-1216.45,0.00011859,2]
[353692810,1739991097587,-897.65,0.00011859,2]
[353692811,1739991097597,-969.77,0.00011859,2]
[353692812,1739991097607,-1228.25,0.00011859,2]
[353692813,1739991097617,-597.7,0.00011859,2]
[353692814,1739991097627,-2264.91,0.00011859,2]
[353692815,1739991097637,-500.0,0.00011859,2]
[353692816,1739991097647,-1031.26,0.00011859,2]
[353692817,1739991097657,-813.49,0.00011859,2]
[353692818,1739991097667,-500.0,0.00011859,2]
[353692819,1739991097679,-943.59,0.00011859,2]
[353692820,1739991097689,-807.9,0.00011859,2]
[353692821,1739991097698,-952.43,0.00011859,2]
[353692822,1739991097708,-1249.19,0.00011859,2]
[353692823,1739991097718,-1931.39,0.00011859,2]
[353692824,1739991097729,-699.69,0.00011859,2]
[353692825,1739991097739,-736.37,0.00011859,2]
[353692826,1739991097749,-1349.59,0.00011859,2]
[353692827,1739991097758,-2136.43,0.00011859,2]
[353692828,1739991097767,-1308.13,0.00011859,2]
[353692829,1739991097775,-763.21,0.00011859,2]
[353692830,1739991097785,-500.0,0.00011859,2]
[353692831,1739991097795,-676.6,0.00011859,2]
[353692832,1739991097804,-1669.19,0.00011859,2]
[353692833,1739991097814,-2496.14,0.00011859,2]
[353692834,1739991097823,-838.79,0.00011859,2]
[353692835,1739991097833,-500.0,0.00011859,2]
[353692836,1739991097843,-844.7,0.00011859,2]
[353692837,1739991097852,-500.0,0.00011859,2]
[353692838,1739991097862,-1038.95,0.00011859,2]